[Event "WYCC 2018 O18"]
[Site "Halkidiki"]
[Date "2018.10.26"]
[Round "7"]
[White "Burovic, Rijad"]
[Black "Tifferet, Shaked"]
[Result "1-0"]
[ECO "C45"]
[WhiteElo "2380"]
[BlackElo "2254"]
[Annotator "NA"]
[PlyCount "121"]
[EventDate "2018.10.20"]
[EventType "swiss"]
[EventCountry "GRE"]
[SourceTitle "playchess.com"]
[Source "ChessBase"]
[SourceQuality "1"]
[TimeControl "40/5400+30:1800+30"]

1. e4 {[%emt 0:00:00]} e5 {[%emt 0:00:00]} 2. Nf3 {[%emt 0:00:00]} Nc6 {[%emt 0:00:00]} 3. d4 {[%emt 0:00:00]} exd4 {[%emt 0:00:00]} 4. Nxd4 {[%emt 0:00:05]} Nf6 {[%emt 0:00:00]} 5. Nxc6 {[%emt 0:00:10]} bxc6 {[%emt 0:00:05]} 6. e5 {[%emt 0:00:21]} Qe7 {[%emt 0:00:25]} 7. Qe2 {[%emt 0:00:09]} Nd5 {[%emt 0:00:06]} 8. Nd2 {[%emt 0:01:37]} g6 {[%emt 0:03:43]} 9. c4 {[%emt 0:00:50]} Nb6 {[%emt 0:01:20]} 10. Ne4 {[%emt 0:00:22]} Bg7 {[%emt 0:06:58]} 11. Bg5 {[%emt 0:01:06]} Qb4+ {[%emt 0:15:40]} 12. Qd2 {[%emt 0:01:35]} Qxd2+ {[%emt 0:02:22]} 13. Kxd2 {[%emt 0:00:23]} Bxe5 {[%emt 0:18:21]} 14. Nf6+ {[%emt 0:01:09]} Bxf6 {[%emt 0:04:37]} 15. Re1+ {[%emt 0:00:27]} Kf8 {[%emt 0:00:52]} 16. Bxf6 {[%emt 0:00:18]} Rg8 {[%emt 0:00:10]} 17. Re7 {[%emt 0:01:45]} d5 {[%emt 0:10:21]} 18. Rxc7 {[%emt 0:03:57]} dxc4 {[%emt 0:01:42]} 19. Rxc6 {[%emt 0:14:33]} Be6 {[%emt 0:01:15]} 20. Be2 {[%emt 0:07:46]} Bd5 {[%emt 0:02:15]} 21. Rd6 {[%emt 0:01:35]} Bxg2 {[%emt 0:01:05]} 22. Rg1 {[%emt 0:09:59]} Bd5 {[%emt 0:01:30]} 23. Rg4 {[%emt 0:04:04]} c3+ {[%emt 0:14:40]} 24. bxc3 {[%emt 0:01:26]} g5 {[%emt 0:10:21]} 25. Rd4 {[%emt 0:02:42]} Rg6 {[%emt 0:02:14]} 26. Bf3 {[%emt 0:00:54]} Nc4+ {[%emt 0:00:36]} 27. Rxc4 {[%emt 0:05:06]} Bxf3 {[%emt 0:00:06]} 28. Rcd4 {[%emt 0:25:04]} Re8 {[%emt 0:00:11]} 29. c4 {[%emt 0:00:29]} Rh6 {[%emt 0:01:56]} 30. Be7+ {[%emt 0:00:48]} Kg7 {[%emt 0:00:01]} 31. Rxh6 {[%emt 0:03:17]} Kxh6 {[%emt 0:00:02]} 32. Rd7 {[%emt 0:00:33]} a6 {[%emt 0:01:51]} 33. Ke3 {[%emt 0:01:15]} Bg4 {[%emt 0:00:54]} 34. Rb7 {[%emt 0:03:18]} Be6 {[%emt 0:00:41]} 35. Kd4 {[%emt 0:01:14]} Rc8 {[%emt 0:00:09]} 36. c5 {[%emt 0:02:20]} Bxa2 {[%emt 0:00:04]} 37. Rb6+ {[%emt 0:01:49]} Be6 {[%emt 0:00:02]} 38. c6 {[%emt 0:00:57]} Kg6 {[%emt 0:01:44]} 39. Rxa6 {[%emt 0:02:15]} f6 {[%emt 0:00:37]} 40. Bd6 {[%emt 0:00:00]} g4 {[%emt 0:00:00]} 41. c7 {[%emt 0:04:03]} Kf7 {[%emt 0:06:07]} 42. Kc5 {[%emt 0:02:45]} Re8 {[%emt 0:14:29]} 43. Bg3 {[%emt 0:02:44]} Ke7 {[%emt 0:00:47]} 44. Rd6 {[%emt 0:03:16]} Bd7 {[%emt 0:06:54]} 45. Kb6 {[%emt 0:02:24]} Bf5 {[%emt 0:00:51]} 46. Rd4 {[%emt 0:01:46]} Rg8 {[%emt 0:04:18]} 47. Bd6+ {[%emt 0:00:48]} Kf7 {[%emt 0:00:34]} 48. Bc5 {[%emt 0:00:40]} Rg6 {[%emt 0:00:31]} 49. Rd8 {[%emt 0:02:21]} Rh6 {[%emt 0:00:27]} 50. Bd6 {[%emt 0:02:49]} Rh3 {[%emt 0:00:21]} 51. c8=Q {[%emt 0:01:51]} Rb3+ {[%emt 0:00:13]} 52. Kc6 {[%emt 0:01:02]} Rc3+ {[%emt 0:00:54]} 53. Bc5 {[%emt 0:00:43]} Bxc8 {[%emt 0:00:05]} 54. Rxc8 {[%emt 0:00:04]} Rh3 {[%emt 0:00:45]} 55. Kd7 {[%emt 0:04:30]} Rxh2 {[%emt 0:00:19]} 56. Rf8+ {[%emt 0:00:16]} Kg7 {[%emt 0:00:36]} 57. Ke6 {[%emt 0:01:07]} Rg2 {[%emt 0:00:47]} 58. Rf7+ {[%emt 0:00:51]} Kg6 {[%emt 0:00:27]} 59. Rxf6+ {[%emt 0:00:58]} Kh5 {[%emt 0:00:19]} 60. Be3 {[%emt 0:00:26]} g3 {[%emt 0:00:13]} 61. f3 {[%emt 0:00:11]} 1-0

[Event "WYCC 2018 O18"]
[Site "Halkidiki"]
[Date "2018.10.26"]
[Round "7"]
[White "Miciano, John Marvin"]
[Black "Beukema, Jasper"]
[Result "1-0"]
[ECO "A20"]
[WhiteElo "2361"]
[BlackElo "2256"]
[Annotator "NA"]
[PlyCount "79"]
[EventDate "2018.10.20"]
[EventType "swiss"]
[EventCountry "GRE"]
[SourceTitle "playchess.com"]
[Source "ChessBase"]
[SourceQuality "1"]
[TimeControl "40/5400+30:1800+30"]

1. c4 {[%emt 0:00:00]} e5 {[%emt 0:00:00]} 2. e3 {[%emt 0:01:04]} Nc6 {[%emt 0:02:16]} 3. Nc3 {[%emt 0:00:56]} d6 {[%emt 0:00:35]} 4. g3 {[%emt 0:05:38]} g6 {[%emt 0:01:42]} 5. Bg2 {[%emt 0:00:10]} Bg7 {[%emt 0:00:10]} 6. Rb1 {[%emt 0:00:18]} f5 {[%emt 0:01:27]} 7. d3 {[%emt 0:00:15]} Nf6 {[%emt 0:00:32]} 8. b4 {[%emt 0:00:53]} O-O {[%emt 0:00:22]} 9. Nge2 {[%emt 0:00:32]} h6 {[%emt 0:04:39]} 10. b5 {[%emt 0:01:10]} Ne7 {[%emt 0:00:07]} 11. O-O {[%emt 0:01:05]} g5 {[%emt 0:02:08]} 12. f4 $14 {[%emt 0:00:12] LiveBook: 7 Games} gxf4 {[%emt 0:03:21]} 13. exf4 {[%emt 0:04:30]} h5 {[%emt 0:05:43]} 14. Kh1 {[%emt 0:01:53]} Qe8 {[%emt 0:04:12]} 15. fxe5 {[%emt 0:02:54]} dxe5 {[%emt 0:00:41]} 16. d4 {[%emt 0:00:22]} e4 {[%emt 0:03:12]} 17. Nf4 {[%emt 0:02:40]} Qf7 {[%emt 0:02:25]} 18. d5 {[%emt 0:07:22]} a6 {[%emt 0:21:51]} 19. Qb3 {[%emt 0:10:31]} Ng6 {[%emt 0:04:36]} 20. Nxg6 {[%emt 0:09:44]} Qxg6 {[%emt 0:00:06]} 21. Bf4 {[%emt 0:01:49]} Qf7 {[%emt 0:02:52]} 22. a4 {[%emt 0:08:43]} Re8 {[%emt 0:12:53]} 23. Ne2 {[%emt 0:03:57]} axb5 {[%emt 0:03:07]} 24. axb5 {[%emt 0:00:08]} Nd7 {[%emt 0:00:57]} 25. Be3 {[%emt 0:02:17]} Ne5 {[%emt 0:05:30]} 26. Bd4 {[%emt 0:11:24]} Qe7 {[%emt 0:02:46]} 27. c5 {[%emt 0:04:11]} Kh7 {[%emt 0:01:22]} 28. Nf4 {[%emt 0:09:03]} h4 {[%emt 0:03:16]} 29. Rbd1 {[%emt 0:05:02]} Ng4 {[%emt 0:03:53]} 30. d6 {[%emt 0:00:47]} cxd6 {[%emt 0:01:06]} 31. cxd6 {[%emt 0:00:17]} Qd7 {[%emt 0:01:07]} 32. Bxg7 {[%emt 0:02:35]} Qxg7 {[%emt 0:02:58]} 33. Bh3 {[%emt 0:01:24]} e3 {[%emt 0:03:54]} 34. Bxg4 {[%emt 0:00:42]} fxg4 {[%emt 0:00:29]} 35. Qd3+ {[%emt 0:00:34]} Kh8 {[%emt 0:00:41]} 36. Ng6+ {[%emt 0:01:50]} Kg8 {[%emt 0:00:22]} 37. Ne7+ {[%emt 0:00:32]} Kh8 {[%emt 0:00:20]} 38. Qd5 {[%emt 0:00:40]} Bd7 {[%emt 0:00:46]} 39. Rf7 {[%emt 0:00:39]} Rxe7 {[%emt 0:00:33]} 40. dxe7 {[%emt 0:00:00]} 1-0

[Event "WYCC 2018 O18"]
[Site "Halkidiki"]
[Date "2018.10.26"]
[Round "7"]
[White "Mitrabha, Guha"]
[Black "Pedoson, Georg Aleksander"]
[Result "1-0"]
[ECO "A04"]
[WhiteElo "2352"]
[BlackElo "2162"]
[Annotator "NA"]
[PlyCount "57"]
[EventDate "2018.10.20"]
[EventType "swiss"]
[EventCountry "GRE"]
[SourceTitle "playchess.com"]
[Source "ChessBase"]
[SourceQuality "1"]
[TimeControl "40/5400+30:1800+30"]

1. Nf3 {[%emt 0:05:13]} f5 {[%emt 0:00:00]} 2. d3 {[%emt 0:02:06]} Nc6 {[%emt 0:00:00]} 3. g3 {[%emt 0:01:55]} e5 {[%emt 0:00:19]} 4. Bg2 {[%emt 0:00:26]} Nf6 {[%emt 0:00:06]} 5. c4 {[%emt 0:00:06]} Be7 {[%emt 0:01:38]} 6. Nc3 {[%emt 0:00:07]} O-O {[%emt 0:02:38]} 7. O-O {[%emt 0:00:08]} Qe8 {[%emt 0:00:35]} 8. Nd5 {[%emt 0:02:27]} Bd8 {[%emt 0:00:27]} 9. Bg5 {[%emt 0:00:22]} Nxd5 $16 {[%emt 0:10:43]} 10. cxd5 {[%emt 0:02:00]} Nd4 {[%emt 0:00:06]} 11. Bxd8 {[%emt 0:00:41]} Nxf3+ {[%emt 0:00:13]} 12. Bxf3 {[%emt 0:00:05]} Qxd8 {[%emt 0:00:04]} 13. Rc1 {[%emt 0:00:16]} a5 {[%emt 0:19:50]} 14. Rc3 {[%emt 0:03:08]} Kh8 {[%emt 0:04:13]} 15. Bg2 {[%emt 0:02:38]} f4 {[%emt 0:07:40]} 16. d4 {[%emt 0:00:43]} d6 {[%emt 0:02:00]} 17. dxe5 {[%emt 0:00:27]} dxe5 {[%emt 0:00:04]} 18. Qb3 {[%emt 0:02:00]} Bg4 {[%emt 0:06:47]} 19. Rfc1 {[%emt 0:05:03]} Bxe2 {[%emt 0:05:04]} 20. Rxc7 {[%emt 0:00:11]} b5 {[%emt 0:01:21]} 21. Qc3 {[%emt 0:04:17]} Qf6 {[%emt 0:01:22]} 22. Qc6 {[%emt 0:07:11]} Qf5 {[%emt 0:02:05]} 23. Qe6 {[%emt 0:05:00]} Qh5 {[%emt 0:03:14]} 24. Qe7 {[%emt 0:06:17]} Qg6 {[%emt 0:02:49]} 25. Be4 {[%emt 0:01:02]} Qh6 {[%emt 0:00:31]} 26. R1c6 {[%emt 0:01:27]} fxg3 {[%emt 0:01:10]} 27. hxg3 {[%emt 0:00:08]} g6 {[%emt 0:00:09]} 28. Qxe5+ {[%emt 0:00:04]} Kg8 {[%emt 0:00:05]} 29. d6 {[%emt 0:00:47]} 1-0

[Event "WYCC 2018 O18"]
[Site "Halkidiki"]
[Date "2018.10.26"]
[Round "7"]
[White "Stijve, Theo"]
[Black "Dallemagne, Maximilien"]
[Result "1/2-1/2"]
[ECO "C18"]
[WhiteElo "2345"]
[BlackElo "2094"]
[Annotator "NA"]
[PlyCount "112"]
[EventDate "2018.10.20"]
[EventType "swiss"]
[EventCountry "GRE"]
[SourceTitle "playchess.com"]
[Source "ChessBase"]
[SourceQuality "1"]
[TimeControl "40/5400+30:1800+30"]

1. e4 {[%emt 0:00:12]} e6 {[%emt 0:00:00]} 2. d4 {[%emt 0:00:08]} d5 {[%emt 0:00:00]} 3. Nc3 {[%emt 0:00:11]} Bb4 {[%emt 0:00:00]} 4. e5 {[%emt 0:00:08]} c5 {[%emt 0:00:00]} 5. a3 {[%emt 0:00:05]} Bxc3+ {[%emt 0:00:01]} 6. bxc3 {[%emt 0:00:07]} Qa5 {[%emt 0:00:13]} 7. Bd2 {[%emt 0:00:17]} Qa4 {[%emt 0:00:40]} 8. Qg4 {[%emt 0:00:09]} Kf8 {[%emt 0:03:47]} 9. Nf3 {[%emt 0:00:34]} Nc6 {[%emt 0:04:18]} 10. Be2 {[%emt 0:02:36]} Nge7 {[%emt 0:04:05]} 11. O-O {[%emt 0:01:18]} Bd7 $14 {[%emt 0:11:44]} 12. Ra2 {[%emt 0:12:29]} Ng6 {[%emt 0:11:16]} 13. Rb1 {[%emt 0:08:31]} Nd8 {[%emt 0:14:12]} 14. h4 {[%emt 0:04:09]} h6 {[%emt 0:06:31]} 15. c4 {[%emt 0:12:16]} dxc4 {[%emt 0:10:20]} 16. dxc5 {[%emt 0:01:59]} Bc6 {[%emt 0:02:55]} 17. Rb4 {[%emt 0:13:01]} Qa5 {[%emt 0:02:12]} 18. Qd4 {[%emt 0:15:13]} Bd5 {[%emt 0:01:02]} 19. Rxb7 {[%emt 0:03:16]} Qa6 {[%emt 0:01:32]} 20. Rb1 {[%emt 0:01:18]} Nc6 {[%emt 0:01:59]} 21. Qe3 {[%emt 0:03:39]} h5 {[%emt 0:03:09]} 22. Bc3 {[%emt 0:01:54]} Nge7 {[%emt 0:01:07]} 23. Nd2 {[%emt 0:02:10]} Na5 {[%emt 0:02:08]} 24. Rab2 {[%emt 0:01:05]} Nac6 {[%emt 0:02:51]} 25. Rb5 {[%emt 0:04:31]} Qa4 {[%emt 0:02:21]} 26. R1b2 {[%emt 0:01:05]} Rh6 {[%emt 0:04:23]} 27. g3 {[%emt 0:02:50]} Rd8 {[%emt 0:01:34]} 28. Qg5 {[%emt 0:06:00]} Qxa3 {[%emt 0:01:20]} 29. Nb1 {[%emt 0:00:22]} Qa4 {[%emt 0:02:27]} 30. Bxh5 {[%emt 0:01:13]} Rh7 {[%emt 0:04:04]} 31. Rb7 {[%emt 0:00:59]} g6 {[%emt 0:00:56]} 32. Be2 {[%emt 0:00:48]} Be4 {[%emt 0:00:24]} 33. Qf4 {[%emt 0:01:15]} Bxc2 {[%emt 0:00:34]} 34. Qxc4 {[%emt 0:00:29]} Qxc4 {[%emt 0:01:21]} 35. Bxc4 {[%emt 0:00:01]} Rd1+ {[%emt 0:00:26]} 36. Kg2 {[%emt 0:00:01]} Be4+ {[%emt 0:01:29]} 37. f3 {[%emt 0:00:01]} Bd5 {[%emt 0:00:02]} 38. Be2 {[%emt 0:01:37]} Rc1 {[%emt 0:00:23]} 39. R7b5 {[%emt 0:00:10]} a6 {[%emt 0:00:59]} 40. Rb6 {[%emt 0:00:00]} Nf5 {[%emt 0:00:00]} 41. Rd2 {[%emt 0:14:03]} g5 {[%emt 0:08:16]} 42. Bd3 {[%emt 0:04:06]} g4 {[%emt 0:04:10]} 43. Be4 {[%emt 0:03:49]} gxf3+ {[%emt 0:01:10]} 44. Bxf3 {[%emt 0:00:50]} Rg7 {[%emt 0:00:18]} 45. Bxd5 {[%emt 0:02:13]} Rxg3+ {[%emt 0:00:40]} 46. Kf2 {[%emt 0:02:09]} exd5 {[%emt 0:01:16]} 47. Rxc6 {[%emt 0:02:14]} Rxb1 {[%emt 0:01:28]} 48. Ba5 {[%emt 0:01:49]} Rbg1 {[%emt 0:05:06]} 49. Rc8+ {[%emt 0:01:37]} Kg7 {[%emt 0:02:16]} 50. c6 {[%emt 0:01:21]} R1g2+ {[%emt 0:07:17]} 51. Ke1 {[%emt 0:00:57]} Rg1+ {[%emt 0:00:50]} 52. Ke2 {[%emt 0:00:35]} R1g2+ {[%emt 0:02:35]} 53. Ke1 {[%emt 0:01:52]} Rg1+ {[%emt 0:00:05]} 54. Ke2 {[%emt 0:00:23]} R1g2+ {[%emt 0:00:01]} 55. Kd1 {[%emt 0:00:21]} Rg1+ {[%emt 0:00:34]} 56. Ke2 {[%emt 0:00:37]} R1g2+ 1/2-1/2

[Event "WYCC 2018 O18"]
[Site "Halkidiki"]
[Date "2018.10.26"]
[Round "7"]
[White "Ahmadzada, Ahmad"]
[Black "Lindbol, Aleksander"]
[Result "1-0"]
[ECO "A13"]
[WhiteElo "2343"]
[BlackElo "2166"]
[Annotator "NA"]
[PlyCount "69"]
[EventDate "2018.10.20"]
[EventType "swiss"]
[EventCountry "GRE"]
[SourceTitle "playchess.com"]
[Source "ChessBase"]
[SourceQuality "1"]
[TimeControl "40/5400+30:1800+30"]

1. Nf3 {[%emt 0:00:00]} Nf6 2. c4 {[%emt 0:00:00]} e6 {[%emt 0:00:26]} 3. g3 {[%emt 0:00:00]} d5 {[%emt 0:00:10]} 4. Bg2 {[%emt 0:00:03]} dxc4 {[%emt 0:00:14]} 5. Qa4+ {[%emt 0:00:11]} Nbd7 {[%emt 0:00:11]} 6. Qxc4 {[%emt 0:00:09]} a6 {[%emt 0:00:09]} 7. O-O {[%emt 0:04:00]} b5 {[%emt 0:00:37]} 8. Qc2 {[%emt 0:00:10]} Bb7 {[%emt 0:00:09]} 9. b3 {[%emt 0:03:32]} c5 {[%emt 0:00:37]} 10. Bb2 {[%emt 0:00:18]} Be7 {[%emt 0:00:14]} 11. d3 {[%emt 0:00:26]} O-O {[%emt 0:00:18]} 12. Nbd2 {[%emt 0:00:23]} Rc8 {[%emt 0:00:30]} 13. Rac1 {[%emt 0:00:48]} Qb6 {[%emt 0:00:32]} 14. Qb1 {[%emt 0:01:03]} Rfd8 {[%emt 0:00:27]} 15. Qa1 {[%emt 0:00:31]} Ne8 {[%emt 0:00:28]} 16. Rc2 {[%emt 0:04:48] LiveBook: 4 Games} Bf6 {[%emt 0:00:34]} 17. Rfc1 {[%emt 0:01:13]} Bxb2 {[%emt 0:00:38]} 18. Qxb2 {[%emt 0:00:26]} Nef6 $11 {[%emt 0:00:17]} 19. Ne5 {[%emt 0:04:51]} Bxg2 {[%emt 0:27:42]} 20. Kxg2 {[%emt 0:01:11]} h5 {[%emt 0:05:53]} 21. Nxd7 {[%emt 0:03:31]} Rxd7 {[%emt 0:03:38]} 22. Nf3 {[%emt 0:02:05]} Rd5 {[%emt 0:11:00]} 23. b4 {[%emt 0:07:32]} Nd7 {[%emt 0:11:42]} 24. Qa3 {[%emt 0:05:23]} a5 {[%emt 0:05:47]} 25. bxa5 {[%emt 0:05:46]} Qa6 {[%emt 0:00:14]} 26. d4 {[%emt 0:06:02]} b4 {[%emt 0:08:02]} 27. Qd3 {[%emt 0:02:44]} Qxa5 {[%emt 0:06:58]} 28. e4 {[%emt 0:01:31]} Rd6 {[%emt 0:00:14]} 29. e5 {[%emt 0:02:14]} Rd5 {[%emt 0:00:24]} 30. Ng5 {[%emt 0:02:58]} Nf8 {[%emt 0:01:44]} 31. Qf3 {[%emt 0:02:02]} f6 {[%emt 0:04:54]} 32. Nxe6 {[%emt 0:02:10]} c4 {[%emt 0:01:25]} 33. Nxg7 {[%emt 0:07:20]} Rxd4 {[%emt 0:05:24]} 34. Nf5 {[%emt 0:01:14]} Qxe5 {[%emt 0:01:06]} 35. Re2 {[%emt 0:00:26]} 1-0

[Event "WYCC 2018 O18"]
[Site "Halkidiki"]
[Date "2018.10.26"]
[Round "7"]
[White "Ranaldi, Lucas"]
[Black "Olimjonov, Sarvarbek"]
[Result "0-1"]
[ECO "A41"]
[WhiteElo "2335"]
[BlackElo "2074"]
[Annotator "NA"]
[PlyCount "80"]
[EventDate "2018.10.20"]
[EventType "swiss"]
[EventCountry "GRE"]
[SourceTitle "playchess.com"]
[Source "ChessBase"]
[SourceQuality "1"]
[TimeControl "40/5400+30:1800+30"]

1. Nf3 {[%emt 0:00:00]} d6 {[%emt 0:00:26]} 2. d4 {[%emt 0:03:33]} Bg4 {[%emt 0:00:28]} 3. e4 {[%emt 0:08:42]} Nf6 {[%emt 0:04:06]} 4. Nc3 {[%emt 0:05:53]} Nbd7 {[%emt 0:04:50]} 5. Be2 {[%emt 0:01:44]} c5 {[%emt 0:06:56]} 6. d5 {[%emt 0:06:39]} g6 {[%emt 0:01:25]} 7. O-O {[%emt 0:00:41]} Bg7 {[%emt 0:00:31]} 8. Nd2 {[%emt 0:05:11]} Bxe2 {[%emt 0:01:50]} 9. Qxe2 {[%emt 0:00:01]} O-O {[%emt 0:01:16]} 10. Rd1 {[%emt 0:08:30]} Nh5 {[%emt 0:05:21]} 11. a4 {[%emt 0:05:55]} f5 {[%emt 0:07:44]} 12. exf5 {[%emt 0:01:13]} Rxf5 {[%emt 0:02:02]} 13. Nde4 {[%emt 0:05:07]} Nf4 {[%emt 0:03:39]} 14. Bxf4 {[%emt 0:00:42]} Rxf4 {[%emt 0:00:09]} 15. g3 {[%emt 0:06:50]} Rf5 {[%emt 0:02:02]} 16. Kg2 {[%emt 0:02:41]} h6 {[%emt 0:02:25]} 17. f4 {[%emt 0:04:42]} Kh8 {[%emt 0:03:01]} 18. a5 {[%emt 0:04:19]} a6 {[%emt 0:00:56]} 19. Ra4 {[%emt 0:00:42]} Qg8 {[%emt 0:04:43]} 20. Qg4 {[%emt 0:14:31]} Qf7 {[%emt 0:03:18]} 21. Qe2 {[%emt 0:01:16]} Rb8 {[%emt 0:01:22]} 22. b3 {[%emt 0:00:35]} Rf8 {[%emt 0:07:19]} 23. h4 {[%emt 0:00:54]} Kg8 {[%emt 0:05:37]} 24. Qd3 {[%emt 0:01:17]} g5 {[%emt 0:11:42]} 25. hxg5 {[%emt 0:00:47]} hxg5 {[%emt 0:00:27]} 26. Ne2 {[%emt 0:05:16]} b5 {[%emt 0:02:37]} 27. Ra2 {[%emt 0:03:32]} gxf4 {[%emt 0:05:50]} 28. gxf4 {[%emt 0:00:01]} Nf6 {[%emt 0:04:21]} 29. Nxf6+ {[%emt 0:00:28]} Qxf6 {[%emt 0:00:54]} 30. Rf1 {[%emt 0:01:42]} Qg6+ {[%emt 0:00:43]} 31. Ng3 {[%emt 0:00:11]} Qg4 {[%emt 0:00:22]} 32. c4 {[%emt 0:01:06]} bxc4 {[%emt 0:00:14]} 33. bxc4 {[%emt 0:00:34]} Rxf4 {[%emt 0:00:11]} 34. Rxf4 {[%emt 0:01:12]} Rxf4 {[%emt 0:01:28]} 35. Rc2 {[%emt 0:00:28]} Be5 {[%emt 0:00:32]} 36. Rf2 {[%emt 0:00:33]} Rf6 {[%emt 0:02:17]} 37. Rf3 {[%emt 0:00:28]} Kg7 {[%emt 0:00:44]} 38. Re3 {[%emt 0:00:21]} Rg6 {[%emt 0:01:54]} 39. Kf2 {[%emt 0:00:40]} Qf4+ {[%emt 0:01:10]} 40. Kg2 {[%emt 0:00:00]} Kf6 {[%emt 0:00:00]} 0-1

[Event "WYCC 2018 O18"]
[Site "Halkidiki"]
[Date "2018.10.26"]
[Round "7"]
[White "Wang, Shixu B"]
[Black "Alexakis, Dimitris"]
[Result "1/2-1/2"]
[ECO "E73"]
[WhiteElo "2330"]
[BlackElo "2186"]
[Annotator "NA"]
[PlyCount "143"]
[EventDate "2018.10.20"]
[EventType "swiss"]
[EventCountry "GRE"]
[SourceTitle "playchess.com"]
[Source "ChessBase"]
[SourceQuality "1"]
[TimeControl "40/5400+30:1800+30"]

1. d4 {[%emt 0:03:22]} Nf6 {[%emt 0:00:00]} 2. c4 {[%emt 0:00:03]} g6 {[%emt 0:00:17]} 3. Nc3 {[%emt 0:00:28]} Bg7 {[%emt 0:00:05]} 4. e4 {[%emt 0:00:11]} d6 {[%emt 0:00:06]} 5. Be2 {[%emt 0:00:26]} O-O {[%emt 0:00:07]} 6. Be3 {[%emt 0:00:37]} c5 {[%emt 0:03:41]} 7. d5 {[%emt 0:02:23]} e6 {[%emt 0:09:20]} 8. Nf3 {[%emt 0:00:24]} exd5 {[%emt 0:03:40]} 9. exd5 {[%emt 0:00:12]} Bf5 $11 {[%emt 0:03:57]} 10. O-O {[%emt 0:05:06]} Ne4 {[%emt 0:00:45]} 11. Nxe4 {[%emt 0:00:13]} Bxe4 {[%emt 0:00:04]} 12. Qd2 {[%emt 0:00:36]} Qb6 {[%emt 0:15:22]} 13. Ng5 {[%emt 0:01:01]} Bf5 {[%emt 0:00:26]} 14. g4 {[%emt 0:02:11]} Bc8 {[%emt 0:02:30]} 15. Rab1 {[%emt 0:00:58]} Nd7 {[%emt 0:10:01]} 16. h3 {[%emt 0:02:22]} Re8 {[%emt 0:19:49]} 17. b3 {[%emt 0:04:21]} Nf6 {[%emt 0:01:50]} 18. Bd3 {[%emt 0:00:43]} h6 {[%emt 0:13:51]} 19. Nxf7 {[%emt 0:06:51]} Rxe3 {[%emt 0:12:59]} 20. Nxh6+ {[%emt 0:04:20]} Bxh6 {[%emt 0:00:01]} 21. fxe3 {[%emt 0:00:10]} Nd7 {[%emt 0:00:57]} 22. Bxg6 {[%emt 0:04:57]} Qd8 {[%emt 0:00:37]} 23. Bf5 {[%emt 0:15:34]} Ne5 {[%emt 0:00:07]} 24. Qe2 {[%emt 0:02:02]} Kg7 {[%emt 0:00:45]} 25. Kg2 {[%emt 0:00:55]} Qe7 {[%emt 0:00:33]} 26. e4 {[%emt 0:01:55]} Bg5 {[%emt 0:00:23]} 27. Rh1 {[%emt 0:02:50]} Bxf5 {[%emt 0:00:41]} 28. exf5 {[%emt 0:00:33]} Rh8 {[%emt 0:00:22]} 29. b4 {[%emt 0:02:27]} cxb4 {[%emt 0:00:26]} 30. Rxb4 {[%emt 0:00:19]} b6 {[%emt 0:00:05]} 31. a4 {[%emt 0:00:52]} Re8 {[%emt 0:01:01]} 32. Qe4 {[%emt 0:08:46]} Qd8 {[%emt 0:00:40]} 33. Re1 {[%emt 0:00:41]} Re7 {[%emt 0:00:23]} 34. Qd4 {[%emt 0:02:01]} Kg8 {[%emt 0:00:36]} 35. Rbb1 {[%emt 0:00:30]} Rc7 {[%emt 0:00:23]} 36. Rb4 {[%emt 0:01:59]} a5 {[%emt 0:00:27]} 37. Rxb6 {[%emt 0:04:10]} Rxc4 {[%emt 0:00:34]} 38. Rxd6 {[%emt 0:00:58]} Rxd4 {[%emt 0:00:31]} 39. Rxd8+ {[%emt 0:00:04]} Bxd8 {[%emt 0:00:04]} 40. Rxe5 {[%emt 0:00:00]} Bf6 {[%emt 0:00:00]} 41. Re6 {[%emt 0:08:55]} Kf7 {[%emt 0:00:45]} 42. Ra6 {[%emt 0:01:11]} Rxd5 {[%emt 0:06:17]} 43. Ra7+ {[%emt 0:00:32]} Ke8 {[%emt 0:01:35]} 44. Ra6 {[%emt 0:00:53]} Bd8 {[%emt 0:04:39]} 45. Re6+ {[%emt 0:03:41]} Kf7 {[%emt 0:04:15]} 46. Kf3 {[%emt 0:04:50]} Rd3+ {[%emt 0:03:29]} 47. Re3 {[%emt 0:00:09]} Rd1 {[%emt 0:00:21]} 48. Re4 {[%emt 0:02:46]} Rf1+ {[%emt 0:01:14]} 49. Kg3 {[%emt 0:00:55]} Rg1+ {[%emt 0:02:02]} 50. Kf3 {[%emt 0:01:04]} Ra1 {[%emt 0:01:19]} 51. Kf4 {[%emt 0:07:15]} Be7 {[%emt 0:06:44]} 52. Rd4 {[%emt 0:01:30]} Bf6 {[%emt 0:04:12]} 53. Rc4 {[%emt 0:00:45]} Rf1+ {[%emt 0:00:38]} 54. Ke4 {[%emt 0:00:35]} Rh1 {[%emt 0:00:30]} 55. Rc7+ {[%emt 0:03:13]} Ke8 {[%emt 0:00:08]} 56. Rh7 {[%emt 0:00:27]} Rd1 {[%emt 0:00:42]} 57. h4 {[%emt 0:01:15]} Rd4+ {[%emt 0:00:03]} 58. Kf3 {[%emt 0:00:05]} Rd3+ {[%emt 0:01:06]} 59. Ke4 {[%emt 0:01:45]} Rd4+ {[%emt 0:00:29]} 60. Kf3 {[%emt 0:00:07]} Rd3+ {[%emt 0:00:27]} 61. Ke2 {[%emt 0:03:30]} Rg3 {[%emt 0:00:32]} 62. g5 {[%emt 0:01:03]} Bxg5 {[%emt 0:00:06]} 63. hxg5 {[%emt 0:00:04]} Rxg5 {[%emt 0:00:09]} 64. f6 {[%emt 0:00:37]} Rg4 {[%emt 0:00:08]} 65. Ra7 {[%emt 0:00:25]} Rxa4 {[%emt 0:00:05]} 66. Kd3 {[%emt 0:00:06]} Rf4 {[%emt 0:00:09]} 67. Rxa5 {[%emt 0:00:31]} Rxf6 {[%emt 0:00:05]} 68. Ke4 {[%emt 0:00:05]} Rh6 {[%emt 0:00:06]} 69. Rd5 {[%emt 0:00:20]} Rh4+ {[%emt 0:00:05]} 70. Ke5 {[%emt 0:00:01]} Rh5+ {[%emt 0:00:12]} 71. Ke4 {[%emt 0:00:02]} Rxd5 {[%emt 0:00:09]} 72. Kxd5 {[%emt 0:00:02]} 1/2-1/2

[Event "WYCC 2018 O18"]
[Site "Halkidiki"]
[Date "2018.10.26"]
[Round "7"]
[White "Banzea, Alexandru-Bogdan"]
[Black "Polyakov, Fedor"]
[Result "1-0"]
[ECO "B31"]
[WhiteElo "2313"]
[BlackElo "2036"]
[Annotator "NA"]
[PlyCount "59"]
[EventDate "2018.10.20"]
[EventType "swiss"]
[EventCountry "GRE"]
[SourceTitle "playchess.com"]
[Source "ChessBase"]
[SourceQuality "1"]
[TimeControl "40/5400+30:1800+30"]

1. e4 {[%emt 0:00:00]} c5 {[%emt 0:00:00]} 2. Nf3 {[%emt 0:00:00]} Nc6 {[%emt 0:00:00]} 3. Bb5 {[%emt 0:00:00]} g6 {[%emt 0:00:00]} 4. Bxc6 {[%emt 0:00:06]} bxc6 $11 {[%emt 0:00:13] LiveBook: 1493 Games} 5. d4 {[%emt 0:00:35]} Bg7 {[%emt 0:00:51]} 6. dxc5 {[%emt 0:00:48]} Qa5+ {[%emt 0:00:37]} 7. Nbd2 {[%emt 0:00:18]} Ba6 {[%emt 0:02:20]} 8. Rb1 {[%emt 0:08:29]} Qxa2 {[%emt 0:18:19]} 9. b4 {[%emt 0:03:33]} Bb5 {[%emt 0:18:46]} 10. Rb3 {[%emt 0:04:27]} Nf6 {[%emt 0:05:16]} 11. Ra3 {[%emt 0:06:02]} Qe6 {[%emt 0:00:07]} 12. c4 {[%emt 0:05:01]} Nxe4 {[%emt 0:06:07]} 13. Qe2 {[%emt 0:05:25]} Bc3 {[%emt 0:08:56]} 14. Rxc3 {[%emt 0:19:46]} Nxc3 {[%emt 0:00:13]} 15. Qxe6 {[%emt 0:00:10]} dxe6 {[%emt 0:02:21]} 16. Bb2 {[%emt 0:00:33]} Ba4 {[%emt 0:01:51]} 17. Bxc3 {[%emt 0:01:06]} O-O {[%emt 0:00:02]} 18. Ke2 {[%emt 0:02:08]} Rfd8 {[%emt 0:06:20]} 19. Ra1 {[%emt 0:02:32]} Bc2 {[%emt 0:00:01]} 20. Nd4 {[%emt 0:00:26]} Bd3+ {[%emt 0:00:14]} 21. Ke3 {[%emt 0:02:19]} Bf5 {[%emt 0:00:02]} 22. Ne4 {[%emt 0:05:18]} Bxe4 {[%emt 0:02:49]} 23. Kxe4 {[%emt 0:00:20]} Rdc8 {[%emt 0:01:24]} 24. Ra6 {[%emt 0:00:28]} g5 {[%emt 0:01:34]} 25. Nxc6 {[%emt 0:00:27]} f5+ {[%emt 0:00:02]} 26. Ke5 {[%emt 0:00:53]} Kf7 {[%emt 0:00:01]} 27. Nd4 {[%emt 0:01:26]} Rd8 {[%emt 0:01:08]} 28. Nxe6 {[%emt 0:00:26]} Rd3 {[%emt 0:00:01]} 29. Nxg5+ Kg7 30. Bd4 {[%emt 0:01:27]} 1-0